[Event "Titled Tuesday Blitz May 4 2021"]
[White "Luberanski, Jakub"]
[Black "Jary, Sergey"]
[WhiteFideId "21830509"]
[BlackFideId "14110350"]
[WhiteElo "2078"]
[BlackElo "2260"]
[Result "1-0"]
[Round "08"]
[TimeControl "180+1"]
[Date "2021.05.04"]
[WhiteClock "0:00:14"]
[BlackClock "0:00:55"]

1. e4 {[%clk 0:03:00]}  c6 {[%clk 0:02:59]} 2. Nf3 {[%clk 0:02:58]}  g6 {[%clk 0:02:55]} 3. d4 {[%clk 0:02:58]}  Bg7 {[%clk 0:02:47]} 4. c4 {[%clk 0:02:56]}  Na6 {[%clk 0:02:44]} 5. Nc3 {[%clk 0:02:56]}  Nc7 {[%clk 0:02:44]} 6. Be2 {[%clk 0:02:54]}  d6 {[%clk 0:02:44]} 7. O-O {[%clk 0:02:53]}  Nf6 {[%clk 0:02:44]} 8. Re1 {[%clk 0:02:49]}  O-O {[%clk 0:02:43]} 9. Bf1 {[%clk 0:02:49]}  Bg4 {[%clk 0:02:40]} 10. h3 {[%clk 0:02:49]}  Bxf3 {[%clk 0:02:39]} 11. Qxf3 {[%clk 0:02:50]}  e5 {[%clk 0:02:39]} 12. d5 {[%clk 0:02:50]}  Nh5 {[%clk 0:02:36]} 13. Qd1 {[%clk 0:02:44]}  cxd5 {[%clk 0:02:31]} 14. cxd5 {[%clk 0:02:43]}  Nf4 {[%clk 0:02:31]} 15. g3 {[%clk 0:02:36]}  Nh5 {[%clk 0:02:30]} 16. Be2 {[%clk 0:02:28]}  Nf6 {[%clk 0:02:29]} 17. Bf3 {[%clk 0:02:25]}  Qd7 {[%clk 0:02:29]} 18. Kg2 {[%clk 0:02:17]}  h5 {[%clk 0:02:26]} 19. Bd2 {[%clk 0:02:06]}  Kh7 {[%clk 0:02:26]} 20. Rc1 {[%clk 0:01:53]}  Bh6 {[%clk 0:02:25]} 21. Bxh6 {[%clk 0:01:47]}  Kxh6 {[%clk 0:02:25]} 22. Qd2+ {[%clk 0:01:47]}  Kg7 {[%clk 0:02:24]} 23. Nd1 {[%clk 0:01:37]}  Rfc8 {[%clk 0:02:23]} 24. Ne3 {[%clk 0:01:23]}  Nb5 {[%clk 0:02:21]} 25. Nf5+ {[%clk 0:01:20]}  gxf5 {[%clk 0:02:20]} 26. Qg5+ {[%clk 0:01:20]}  Kf8 {[%clk 0:02:19]} 27. Qxf6 {[%clk 0:01:20]}  Nd4 {[%clk 0:02:10]} 28. Bxh5 {[%clk 0:01:13]}  Rxc1 {[%clk 0:02:01]} 29. Rxc1 {[%clk 0:01:13]}  Kg8 {[%clk 0:02:01]} 30. exf5 {[%clk 0:01:10]}  Qxf5 {[%clk 0:01:59]} 31. Bxf7+ {[%clk 0:01:09]}  Kh7 {[%clk 0:01:55]} 32. Qxf5+ {[%clk 0:01:06]}  Nxf5 {[%clk 0:01:54]} 33. Rc7 {[%clk 0:01:06]}  Kh6 {[%clk 0:01:54]} 34. Rxb7 {[%clk 0:01:02]}  a5 {[%clk 0:01:54]} 35. Be6 {[%clk 0:01:02]}  Nd4 {[%clk 0:01:54]} 36. h4 {[%clk 0:01:00]}  Re8 {[%clk 0:01:51]} 37. Bg4 {[%clk 0:00:55]}  Rg8 {[%clk 0:01:44]} 38. Bd1 {[%clk 0:00:54]}  Nf5 {[%clk 0:01:38]} 39. Kh3 {[%clk 0:00:51]}  Rf8 {[%clk 0:01:36]} 40. Rb6 {[%clk 0:00:50]}  Rd8 {[%clk 0:01:35]} 41. g4 {[%clk 0:00:48]}  Ne7 {[%clk 0:01:33]} 42. g5+ {[%clk 0:00:47]}  Kg6 {[%clk 0:01:29]} 43. Kg4 {[%clk 0:00:48]}  Nxd5 {[%clk 0:01:26]} 44. h5+ {[%clk 0:00:47]}  Kg7 {[%clk 0:01:24]} 45. Rb7+ {[%clk 0:00:47]}  Kh8 {[%clk 0:01:23]} 46. h6 {[%clk 0:00:43]}  Rf8 {[%clk 0:01:18]} 47. Bc2 {[%clk 0:00:35]}  Nf4 {[%clk 0:01:11]} 48. Rh7+ {[%clk 0:00:22]}  Kg8 {[%clk 0:01:09]} 49. Rg7+ {[%clk 0:00:23]}  Kh8 {[%clk 0:01:08]} 50. Ra7 {[%clk 0:00:24]}  d5 {[%clk 0:01:05]} 51. Rxa5 {[%clk 0:00:23]}  e4 {[%clk 0:01:00]} 52. Bb3 {[%clk 0:00:19]}  d4 {[%clk 0:00:56]} 53. Rf5 {[%clk 0:00:16]}  Rxf5 {[%clk 0:00:54]} 54. Kxf5 {[%clk 0:00:17]}  e3 {[%clk 0:00:55]} 55. fxe3 {[%clk 0:00:14]}  dxe3 {[%clk 0:00:55]} 56. Bc4 {[%clk 0:00:14]}  e2 {[%clk 0:00:55]} 57. Bxe2 {[%clk 0:00:14]}  Nxe2 {[%clk 0:00:55]} 58. a4 {[%clk 0:00:15]}  Nd4+ {[%clk 0:00:55]} 59. Ke4 {[%clk 0:00:15]}  Ne6 {[%clk 0:00:54]} 60. a5 {[%clk 0:00:14]}  Nxg5+ {[%clk 0:00:53]} 61. Kd5 {[%clk 0:00:14]}  Nf7 {[%clk 0:00:52]} 62. a6 {[%clk 0:00:14]}  Nd8 {[%clk 0:00:53]} 63. Kd6 {[%clk 0:00:14]}  Kh7 {[%clk 0:00:54]} 64. Kd7 {[%clk 0:00:13]}  Nf7 {[%clk 0:00:54]} 65. a7 {[%clk 0:00:14]}  Ne5+ {[%clk 0:00:55]} 66. Kc7 {[%clk 0:00:14]} 1-0


[Site "https://www.chess.com"]

[Event "Titled Tuesday Blitz May 4 2021"]
[White "Lysenko, Volodymyr"]
[Black "Novikova, Galina"]
[WhiteFideId "14175770"]
[BlackFideId "4157095"]
[WhiteElo "1957"]
[BlackElo "1966"]
[Result "0-1"]
[Round "08"]
[TimeControl "180+1"]
[Date "2021.05.04"]
[WhiteClock "0:00:11"]
[BlackClock "0:00:06"]

1. d4 {[%clk 0:02:48]}  Nf6 {[%clk 0:02:58]} 2. c4 {[%clk 0:02:47]}  g6 {[%clk 0:02:59]} 3. Nc3 {[%clk 0:02:47]}  Bg7 {[%clk 0:02:59]} 4. e4 {[%clk 0:02:48]}  d6 {[%clk 0:03:00]} 5. Bg5 {[%clk 0:02:47]}  O-O {[%clk 0:02:59]} 6. Nf3 {[%clk 0:02:48]}  Na6 {[%clk 0:02:58]} 7. Be2 {[%clk 0:02:47]}  Bg4 {[%clk 0:02:58]} 8. O-O {[%clk 0:02:47]}  c5 {[%clk 0:02:55]} 9. d5 {[%clk 0:02:45]}  Bxf3 {[%clk 0:02:49]} 10. Bxf3 {[%clk 0:02:46]}  Nd7 {[%clk 0:02:49]} 11. Re1 {[%clk 0:02:45]}  h6 {[%clk 0:02:46]} 12. Bh4 {[%clk 0:02:45]}  Nc7 {[%clk 0:02:41]} 13. Qd2 {[%clk 0:02:41]}  a6 {[%clk 0:02:35]} 14. a4 {[%clk 0:02:40]}  Rb8 {[%clk 0:02:35]} 15. Bg4 {[%clk 0:02:24]}  Ne5 {[%clk 0:02:32]} 16. Be2 {[%clk 0:02:23]}  g5 {[%clk 0:02:13]} 17. Bg3 {[%clk 0:02:23]}  Ng6 {[%clk 0:02:14]} 18. Nd1 {[%clk 0:01:48]}  b5 {[%clk 0:02:11]} 19. axb5 {[%clk 0:01:47]}  axb5 {[%clk 0:02:12]} 20. Ne3 {[%clk 0:01:39]}  bxc4 {[%clk 0:02:11]} 21. Nxc4 {[%clk 0:01:39]}  Nb5 {[%clk 0:02:02]} 22. Bh5 {[%clk 0:01:17]}  Nd4 {[%clk 0:01:56]} 23. e5 {[%clk 0:00:57]}  Nb3 {[%clk 0:01:46]} 24. Qc2 {[%clk 0:00:50]}  Nxa1 {[%clk 0:01:45]} 25. Rxa1 {[%clk 0:00:51]}  Nxe5 {[%clk 0:01:43]} 26. Nxe5 {[%clk 0:00:51]}  dxe5 {[%clk 0:01:44]} 27. Qxc5 {[%clk 0:00:42]}  Rxb2 {[%clk 0:01:44]} 28. Re1 {[%clk 0:00:40]}  Qb8 {[%clk 0:01:27]} 29. h4 {[%clk 0:00:35]}  Rb1 {[%clk 0:01:26]} 30. Rxb1 {[%clk 0:00:28]}  Qxb1+ {[%clk 0:01:27]} 31. Kh2 {[%clk 0:00:29]}  gxh4 {[%clk 0:01:25]} 32. Bxh4 {[%clk 0:00:26]}  Qf5 {[%clk 0:01:21]} 33. g4 {[%clk 0:00:20]}  Qf4+ {[%clk 0:01:06]} 34. Bg3 {[%clk 0:00:20]}  Qg5 {[%clk 0:01:05]} 35. Qc6 {[%clk 0:00:18]}  f5 {[%clk 0:00:54]} 36. Qe6+ {[%clk 0:00:17]}  Kh8 {[%clk 0:00:54]} 37. f3 {[%clk 0:00:16]}  Qd2+ {[%clk 0:00:38]} 38. Kh3 {[%clk 0:00:15]}  f4 {[%clk 0:00:35]} 39. Bh4 {[%clk 0:00:12]}  Qd1 {[%clk 0:00:29]} 40. Kg2 {[%clk 0:00:12]}  Qe2+ {[%clk 0:00:29]} 41. Bf2 {[%clk 0:00:13]}  Bf6 {[%clk 0:00:14]} 42. d6 {[%clk 0:00:13]}  Bh4 {[%clk 0:00:13]} 43. Qxh6+ {[%clk 0:00:11]}  Kg8 {[%clk 0:00:14]} 44. Qg6+ {[%clk 0:00:12]}  Kh8 {[%clk 0:00:14]} 45. Qh6+ {[%clk 0:00:11]}  Kg8 {[%clk 0:00:15]} 46. Bf7+ {[%clk 0:00:12]}  Rxf7 {[%clk 0:00:14]} 47. Qxh4 {[%clk 0:00:12]}  exd6 {[%clk 0:00:13]} 48. Qg5+ {[%clk 0:00:12]}  Rg7 {[%clk 0:00:10]} 49. Qd8+ {[%clk 0:00:12]}  Kh7 {[%clk 0:00:10]} 50. Qxd6 {[%clk 0:00:13]}  e4 {[%clk 0:00:06]} 51. Qxf4 {[%clk 0:00:12]}  exf3+ {[%clk 0:00:06]} 52. Qxf3 {[%clk 0:00:12]}  Rxg4+ {[%clk 0:00:07]} 53. Kh3 {[%clk 0:00:11]}  Qxf3+ {[%clk 0:00:06]} 0-1


[Site "https://www.chess.com"]

[Event "Titled Tuesday Blitz May 4 2021"]
[White "Manolache, Marius"]
[Black "Novikov, Evgenij"]
[WhiteFideId "1201530"]
[BlackFideId "4125380"]
[WhiteElo "2391"]
[BlackElo "2242"]
[Result "1-0"]
[Round "08"]
[TimeControl "180+1"]
[Date "2021.05.04"]
[WhiteClock "0:01:50"]
[BlackClock "0:00:07"]

1. d4 {[%clk 0:03:00]}  d5 {[%clk 0:02:58]} 2. c4 {[%clk 0:03:00]}  e6 {[%clk 0:02:57]} 3. Nc3 {[%clk 0:03:00]}  Nf6 {[%clk 0:02:56]} 4. cxd5 {[%clk 0:03:01]}  exd5 {[%clk 0:02:56]} 5. Bg5 {[%clk 0:03:01]}  Nbd7 {[%clk 0:02:56]} 6. e3 {[%clk 0:02:58]}  c6 {[%clk 0:02:55]} 7. Bd3 {[%clk 0:02:58]}  h6 {[%clk 0:02:55]} 8. Bh4 {[%clk 0:02:57]}  Be7 {[%clk 0:02:55]} 9. Qc2 {[%clk 0:02:56]}  O-O {[%clk 0:02:53]} 10. Nge2 {[%clk 0:02:55]}  Re8 {[%clk 0:02:53]} 11. h3 {[%clk 0:02:52]}  a6 {[%clk 0:02:45]} 12. O-O-O {[%clk 0:02:49]}  Ne4 {[%clk 0:02:32]} 13. Bxe7 {[%clk 0:02:47]}  Qxe7 {[%clk 0:02:33]} 14. Bxe4 {[%clk 0:02:40]}  dxe4 {[%clk 0:02:34]} 15. g4 {[%clk 0:02:39]}  Nf6 {[%clk 0:02:20]} 16. Rhg1 {[%clk 0:02:38]}  Be6 {[%clk 0:02:09]} 17. g5 {[%clk 0:02:37]}  hxg5 {[%clk 0:02:08]} 18. Rxg5 {[%clk 0:02:37]}  g6 {[%clk 0:01:32]} 19. Rdg1 {[%clk 0:02:36]}  Kh7 {[%clk 0:01:31]} 20. Nf4 {[%clk 0:02:35]}  Bf5 {[%clk 0:01:12]} 21. h4 {[%clk 0:02:26]}  Rg8 {[%clk 0:01:01]} 22. Qd1 {[%clk 0:02:19]}  Rg7 {[%clk 0:00:47]} 23. h5 {[%clk 0:02:17]}  Kg8 {[%clk 0:00:44]} 24. h6 {[%clk 0:02:15]}  Rh7 {[%clk 0:00:40]} 25. Rxf5 {[%clk 0:02:15]}  Rxh6 {[%clk 0:00:41]} 26. Re5 {[%clk 0:02:15]}  Qd8 {[%clk 0:00:19]} 27. Nxe4 {[%clk 0:02:08]}  Nd7 {[%clk 0:00:19]} 28. Reg5 {[%clk 0:02:05]}  Nf8 {[%clk 0:00:19]} 29. Qb3 {[%clk 0:02:01]}  Kg7 {[%clk 0:00:16]} 30. Nh5+ {[%clk 0:01:53]}  Kg8 {[%clk 0:00:15]} 31. Nef6+ {[%clk 0:01:52]}  Kh8 {[%clk 0:00:14]} 32. Qxf7 {[%clk 0:01:51]}  Nh7 {[%clk 0:00:07]} 33. Qg7# {[%clk 0:01:50]} 1-0


[Site "https://www.chess.com"]

[Event "Titled Tuesday Blitz May 4 2021"]
[White "Manukian, Artak"]
[Black "Li, Hui"]
[WhiteFideId "13301373"]
[BlackFideId "15400310"]
[WhiteElo "2470"]
[BlackElo "1954"]
[Result "1/2-1/2"]
[Round "08"]
[TimeControl "180+1"]
[Date "2021.05.04"]
[WhiteClock "0:00:50"]
[BlackClock "0:00:03"]

1. e4 {[%clk 0:03:00]}  e5 {[%clk 0:02:59]} 2. Nf3 {[%clk 0:03:00]}  Nf6 {[%clk 0:02:59]} 3. Nxe5 {[%clk 0:02:59]}  d6 {[%clk 0:02:59]} 4. Nf3 {[%clk 0:03:00]}  Nxe4 {[%clk 0:02:59]} 5. Nc3 {[%clk 0:03:00]}  Nxc3 {[%clk 0:02:59]} 6. dxc3 {[%clk 0:03:01]}  Be7 {[%clk 0:03:00]} 7. Bf4 {[%clk 0:02:59]}  Nc6 {[%clk 0:03:00]} 8. Qd2 {[%clk 0:03:00]}  Be6 {[%clk 0:03:01]} 9. O-O-O {[%clk 0:02:59]}  Qd7 {[%clk 0:02:58]} 10. Ng5 {[%clk 0:02:57]}  Bxg5 {[%clk 0:02:57]} 11. Bxg5 {[%clk 0:02:58]}  f6 {[%clk 0:02:57]} 12. Be3 {[%clk 0:02:57]}  a6 {[%clk 0:02:45]} 13. c4 {[%clk 0:02:51]}  O-O-O {[%clk 0:02:44]} 14. c5 {[%clk 0:02:48]}  dxc5 {[%clk 0:02:40]} 15. Qxd7+ {[%clk 0:02:47]}  Rxd7 {[%clk 0:02:40]} 16. Rxd7 {[%clk 0:02:46]}  Bxd7 {[%clk 0:02:31]} 17. Bxc5 {[%clk 0:02:47]}  Re8 {[%clk 0:02:20]} 18. Bd3 {[%clk 0:02:38]}  Ne5 {[%clk 0:01:40]} 19. Bxh7 {[%clk 0:02:25]}  Bc6 {[%clk 0:01:34]} 20. f4 {[%clk 0:02:13]}  Nd7 {[%clk 0:01:22]} 21. Bb4 {[%clk 0:02:04]}  b6 {[%clk 0:00:48]} 22. Bf5 {[%clk 0:01:49]}  Bxg2 {[%clk 0:00:43]} 23. Rg1 {[%clk 0:01:48]}  Be4 {[%clk 0:00:43]} 24. Bxd7+ {[%clk 0:01:45]}  Kxd7 {[%clk 0:00:43]} 25. Rxg7+ {[%clk 0:01:46]}  Kc6 {[%clk 0:00:35]} 26. Be7 {[%clk 0:01:29]}  Rh8 {[%clk 0:00:29]} 27. Bxf6 {[%clk 0:01:13]}  Rxh2 {[%clk 0:00:29]} 28. Be5 {[%clk 0:01:12]}  Rxc2+ {[%clk 0:00:28]} 29. Kd1 {[%clk 0:01:13]}  Kb5 {[%clk 0:00:21]} 30. Rxc7 {[%clk 0:01:10]}  Rxc7 {[%clk 0:00:19]} 31. Bxc7 {[%clk 0:01:11]}  Kc6 {[%clk 0:00:17]} 32. Bd8 {[%clk 0:01:09]}  b5 {[%clk 0:00:17]} 33. Kd2 {[%clk 0:01:09]}  Bb1 {[%clk 0:00:16]} 34. a3 {[%clk 0:01:08]}  Kd5 {[%clk 0:00:16]} 35. Ke3 {[%clk 0:01:07]}  Bg6 {[%clk 0:00:13]} 36. Kf3 {[%clk 0:01:06]}  Bf5 {[%clk 0:00:12]} 37. Bc7 {[%clk 0:01:03]}  Bc8 {[%clk 0:00:11]} 38. Kg3 {[%clk 0:01:02]}  Ke4 {[%clk 0:00:11]} 39. Kh4 {[%clk 0:01:03]}  Kf5 {[%clk 0:00:11]} 40. Kg3 {[%clk 0:01:02]}  Bd7 {[%clk 0:00:07]} 41. Kf3 {[%clk 0:01:02]}  Bc6+ {[%clk 0:00:07]} 42. Ke3 {[%clk 0:01:02]}  Bd5 {[%clk 0:00:07]} 43. Kd4 {[%clk 0:01:02]}  Bb3 {[%clk 0:00:07]} 44. Kc5 {[%clk 0:01:02]}  Bc4 {[%clk 0:00:06]} 45. Kb6 {[%clk 0:01:01]}  Ke4 {[%clk 0:00:06]} 46. b4 {[%clk 0:00:58]}  Bb3 {[%clk 0:00:03]} 47. Kxa6 {[%clk 0:00:57]}  Ba4 {[%clk 0:00:04]} 48. Kb6 {[%clk 0:00:57]}  Kf5 {[%clk 0:00:04]} 49. Kc5 {[%clk 0:00:57]}  Ke4 {[%clk 0:00:04]} 50. Kd6 {[%clk 0:00:55]}  Kf5 {[%clk 0:00:04]} 51. Kd5 {[%clk 0:00:55]}  Bb3+ {[%clk 0:00:03]} 52. Kd4 {[%clk 0:00:55]}  Ba4 {[%clk 0:00:03]} 53. Be5 {[%clk 0:00:54]}  Ke6 {[%clk 0:00:03]} 54. Ke4 {[%clk 0:00:53]}  Bc2+ {[%clk 0:00:03]} 55. Ke3 {[%clk 0:00:53]}  Kf5 {[%clk 0:00:03]} 56. Kd4 {[%clk 0:00:53]}  Ba4 {[%clk 0:00:03]} 57. Kc5 {[%clk 0:00:53]}  Ke6 {[%clk 0:00:03]} 58. Bc7 {[%clk 0:00:53]}  Kf5 {[%clk 0:00:03]} 59. Kd5 {[%clk 0:00:51]}  Bb3+ {[%clk 0:00:03]} 60. Kd4 {[%clk 0:00:52]}  Ba4 {[%clk 0:00:04]} 61. Kc5 {[%clk 0:00:51]}  Ke6 {[%clk 0:00:03]} 62. Bb8 {[%clk 0:00:50]}  Kf5 {[%clk 0:00:04]} 63. Kd4 {[%clk 0:00:49]}  Ke6 {[%clk 0:00:03]} 64. Ke4 {[%clk 0:00:49]}  Bc2+ {[%clk 0:00:03]} 65. Kf3 {[%clk 0:00:47]}  Kf5 {[%clk 0:00:03]} 66. Kg3 {[%clk 0:00:47]}  Ba4 {[%clk 0:00:03]} 67. Kh4 {[%clk 0:00:47]}  Bb3 {[%clk 0:00:04]} 68. Kh5 {[%clk 0:00:47]}  Ba4 {[%clk 0:00:04]} 69. Kh6 {[%clk 0:00:48]}  Bb3 {[%clk 0:00:05]} 70. Kg7 {[%clk 0:00:49]}  Ba4 {[%clk 0:00:05]} 71. Kf7 {[%clk 0:00:49]}  Bb3+ {[%clk 0:00:06]} 72. Ke7 {[%clk 0:00:50]}  Ba4 {[%clk 0:00:06]} 73. Kd6 {[%clk 0:00:51]}  Bb3 {[%clk 0:00:05]} 74. Kc5 {[%clk 0:00:51]}  Ba4 {[%clk 0:00:05]} 75. Kb6 {[%clk 0:00:51]}  Ke6 {[%clk 0:00:05]} 76. Be5 {[%clk 0:00:52]}  Kf5 {[%clk 0:00:05]} 77. Kc5 {[%clk 0:00:53]}  Ke6 {[%clk 0:00:05]} 78. Kd4 {[%clk 0:00:53]}  Kf5 {[%clk 0:00:05]} 79. Kd5 {[%clk 0:00:53]}  Bb3+ {[%clk 0:00:04]} 80. Kd6 {[%clk 0:00:53]}  Ba4 {[%clk 0:00:05]} 81. Kd7 {[%clk 0:00:52]}  Bb3 {[%clk 0:00:04]} 82. Bd6 {[%clk 0:00:53]}  Ba4 {[%clk 0:00:04]} 83. Kc6 {[%clk 0:00:53]}  Ke6 {[%clk 0:00:03]} 84. Bb8 {[%clk 0:00:50]}  Kf5 {[%clk 0:00:03]} 85. Kd5 {[%clk 0:00:50]}  Bb3+ {[%clk 0:00:03]} 86. Kd4 {[%clk 0:00:50]}  Ba4 {[%clk 0:00:03]} 87. Kc5 {[%clk 0:00:51]}  Ke6 {[%clk 0:00:02]} 88. Kd4 {[%clk 0:00:49]}  Kf5 {[%clk 0:00:02]} 89. Kc3 {[%clk 0:00:49]}  Ke6 {[%clk 0:00:02]} 90. Kd2 {[%clk 0:00:50]}  Kf5 {[%clk 0:00:02]} 91. Ke2 {[%clk 0:00:51]}  Bb3 {[%clk 0:00:02]} 92. Ke3 {[%clk 0:00:51]}  Ba4 {[%clk 0:00:03]} 93. Kd4 {[%clk 0:00:52]}  Bb3 {[%clk 0:00:03]} 94. Kc5 {[%clk 0:00:50]}  Ba4 {[%clk 0:00:03]} 1/2-1/2


[Site "https://www.chess.com"]

[Event "Titled Tuesday Blitz May 4 2021"]
[White "Martinez Alcantara, Jose Eduardo"]
[Black "Kovalev, Vladislav"]
[WhiteFideId "3805662"]
[BlackFideId "13504398"]
[WhiteElo "2690"]
[BlackElo "2573"]
[Result "0-1"]
[Round "08"]
[TimeControl "180+1"]
[Date "2021.05.04"]
[WhiteClock "0:00:03"]
[BlackClock "0:00:04"]

1. e4 {[%clk 0:03:00]}  e5 {[%clk 0:03:00]} 2. Nf3 {[%clk 0:03:01]}  Nc6 {[%clk 0:03:00]} 3. Bb5 {[%clk 0:03:01]}  a6 {[%clk 0:03:01]} 4. Ba4 {[%clk 0:03:01]}  d6 {[%clk 0:03:02]} 5. c3 {[%clk 0:03:01]}  Bd7 {[%clk 0:03:02]} 6. O-O {[%clk 0:03:01]}  Nf6 {[%clk 0:02:57]} 7. Re1 {[%clk 0:03:00]}  g6 {[%clk 0:02:57]} 8. d4 {[%clk 0:03:01]}  Bg7 {[%clk 0:02:58]} 9. h3 {[%clk 0:03:01]}  O-O {[%clk 0:02:58]} 10. Nbd2 {[%clk 0:02:56]}  Re8 {[%clk 0:02:55]} 11. Bc2 {[%clk 0:02:36]}  b5 {[%clk 0:02:07]} 12. a3 {[%clk 0:02:28]}  a5 {[%clk 0:02:04]} 13. Nf1 {[%clk 0:02:23]}  a4 {[%clk 0:02:04]} 14. Ng3 {[%clk 0:02:10]}  Na5 {[%clk 0:02:03]} 15. dxe5 {[%clk 0:01:42]}  dxe5 {[%clk 0:02:03]} 16. Qe2 {[%clk 0:01:43]}  Qb8 {[%clk 0:01:55]} 17. Rd1 {[%clk 0:01:39]}  c6 {[%clk 0:01:54]} 18. Nh2 {[%clk 0:01:24]}  Be6 {[%clk 0:01:54]} 19. Qf3 {[%clk 0:01:18]}  Nc4 {[%clk 0:01:40]} 20. Bg5 {[%clk 0:01:04]}  Nd7 {[%clk 0:01:40]} 21. Ng4 {[%clk 0:01:00]}  Bxg4 {[%clk 0:01:29]} 22. Qxg4 {[%clk 0:00:43]}  Nc5 {[%clk 0:01:28]} 23. Nf5 {[%clk 0:00:40]}  gxf5 {[%clk 0:00:40]} 24. exf5 {[%clk 0:00:40]}  f6 {[%clk 0:00:41]} 25. Bxf6 {[%clk 0:00:32]}  Ra7 {[%clk 0:00:42]} 26. Bg5 {[%clk 0:00:27]}  Kh8 {[%clk 0:00:35]} 27. f6 {[%clk 0:00:24]}  Bf8 {[%clk 0:00:36]} 28. Qh5 {[%clk 0:00:19]}  e4 {[%clk 0:00:32]} 29. Rd4 {[%clk 0:00:16]}  Re5 {[%clk 0:00:30]} 30. f4 {[%clk 0:00:15]}  Rd5 {[%clk 0:00:17]} 31. Rad1 {[%clk 0:00:13]}  Ne3 {[%clk 0:00:12]} 32. Bxe4 {[%clk 0:00:10]}  Nxe4 {[%clk 0:00:12]} 33. Re1 {[%clk 0:00:07]}  Ng3 {[%clk 0:00:08]} 34. Qf3 {[%clk 0:00:06]}  Rxd4 {[%clk 0:00:05]} 35. cxd4 {[%clk 0:00:06]}  Nef5 {[%clk 0:00:05]} 36. Re6 {[%clk 0:00:04]}  Rf7 {[%clk 0:00:05]} 37. Qxc6 {[%clk 0:00:03]}  Qc7 {[%clk 0:00:05]} 38. Qxc7 {[%clk 0:00:02]}  Rxc7 {[%clk 0:00:05]} 39. Kf2 {[%clk 0:00:02]}  Kg8 {[%clk 0:00:03]} 40. d5 {[%clk 0:00:02]}  h5 {[%clk 0:00:03]} 41. Ke1 {[%clk 0:00:01]}  Rc2 {[%clk 0:00:03]} 42. Kd1 {[%clk 0:00:02]}  Rxg2 {[%clk 0:00:03]} 43. d6 {[%clk 0:00:02]}  Bxd6 {[%clk 0:00:04]} 44. f7+ {[%clk 0:00:02]}  Kxf7 {[%clk 0:00:04]} 45. Rf6+ {[%clk 0:00:03]}  Kg7 {[%clk 0:00:05]} 46. h4 {[%clk 0:00:03]}  Ne3+ {[%clk 0:00:04]} 0-1


[Site "https://www.chess.com"]

[Event "Titled Tuesday Blitz May 4 2021"]
[White "Mekhitarian, Krikor Sevag"]
[Black "Suvorov, Alexander"]
[WhiteFideId "2107660"]
[BlackFideId "12977063"]
[WhiteElo "2598"]
[BlackElo "2221"]
[Result "1/2-1/2"]
[Round "08"]
[TimeControl "180+1"]
[Date "2021.05.04"]
[WhiteClock "0:00:05"]
[BlackClock "0:00:05"]

1. e4 {[%clk 0:02:58]}  c5 {[%clk 0:02:59]} 2. Nf3 {[%clk 0:02:56]}  e6 {[%clk 0:02:59]} 3. d4 {[%clk 0:02:55]}  cxd4 {[%clk 0:02:59]} 4. Nxd4 {[%clk 0:02:55]}  Nc6 {[%clk 0:03:00]} 5. Nc3 {[%clk 0:02:53]}  Qc7 {[%clk 0:03:00]} 6. g3 {[%clk 0:02:33]}  a6 {[%clk 0:02:57]} 7. Bg2 {[%clk 0:02:32]}  Nge7 {[%clk 0:02:56]} 8. Nb3 {[%clk 0:02:27]}  Ng6 {[%clk 0:02:50]} 9. O-O {[%clk 0:02:16]}  Be7 {[%clk 0:02:26]} 10. Kh1 {[%clk 0:02:15]}  b5 {[%clk 0:02:17]} 11. f4 {[%clk 0:02:13]}  Bb7 {[%clk 0:02:13]} 12. f5 {[%clk 0:02:00]}  Nge5 {[%clk 0:02:01]} 13. Bf4 {[%clk 0:02:00]}  h5 {[%clk 0:01:52]} 14. h3 {[%clk 0:01:42]}  O-O-O {[%clk 0:01:33]} 15. a4 {[%clk 0:01:25]}  b4 {[%clk 0:01:29]} 16. Nd5 {[%clk 0:01:25]}  exd5 {[%clk 0:01:20]} 17. exd5 {[%clk 0:01:26]}  Nb8 {[%clk 0:01:15]} 18. Qd4 {[%clk 0:01:18]}  Bf6 {[%clk 0:00:56]} 19. Qxb4 {[%clk 0:01:15]}  d6 {[%clk 0:00:53]} 20. Na5 {[%clk 0:01:13]}  Nbd7 {[%clk 0:00:48]} 21. Nxb7 {[%clk 0:01:06]}  Qxb7 {[%clk 0:00:48]} 22. Qxd6 {[%clk 0:01:05]}  Rhe8 {[%clk 0:00:34]} 23. Qa3 {[%clk 0:00:31]}  Nc4 {[%clk 0:00:34]} 24. Qb3 {[%clk 0:00:17]}  Qxb3 {[%clk 0:00:23]} 25. cxb3 {[%clk 0:00:18]}  Ne3 {[%clk 0:00:24]} 26. Rfc1+ {[%clk 0:00:14]}  Kb7 {[%clk 0:00:24]} 27. Bf3 {[%clk 0:00:14]}  Ne5 {[%clk 0:00:22]} 28. Bxh5 {[%clk 0:00:09]}  Nxf5 {[%clk 0:00:19]} 29. Kg2 {[%clk 0:00:06]}  g5 {[%clk 0:00:19]} 30. Bd2 {[%clk 0:00:04]}  Nd4 {[%clk 0:00:16]} 31. Rf1 {[%clk 0:00:02]}  Rd6 {[%clk 0:00:14]} 32. Bc3 {[%clk 0:00:03]}  Nxb3 {[%clk 0:00:12]} 33. Bb4 {[%clk 0:00:02]}  Rb6 {[%clk 0:00:11]} 34. Rae1 {[%clk 0:00:01]}  Rxb4 {[%clk 0:00:07]} 35. Rxf6 {[%clk 0:00:01]}  Nd4 {[%clk 0:00:05]} 36. d6 {[%clk 0:00:01]}  Rxb2+ {[%clk 0:00:06]} 37. Kf1 {[%clk 0:00:02]}  Ndc6 {[%clk 0:00:04]} 38. Rf5 {[%clk 0:00:01]}  Rd8 {[%clk 0:00:04]} 39. Bxf7 {[%clk 0:00:01]}  Rxd6 {[%clk 0:00:04]} 40. Bh5 {[%clk 0:00:02]}  Rdd2 {[%clk 0:00:04]} 41. Re2 {[%clk 0:00:02]}  Rxe2 {[%clk 0:00:04]} 42. Bxe2 {[%clk 0:00:03]}  Kb6 {[%clk 0:00:05]} 43. Rxg5 {[%clk 0:00:04]}  Rb4 {[%clk 0:00:05]} 44. h4 {[%clk 0:00:03]}  Rxa4 {[%clk 0:00:05]} 45. h5 {[%clk 0:00:04]}  Rd4 {[%clk 0:00:05]} 46. h6 {[%clk 0:00:04]}  Rd7 {[%clk 0:00:06]} 47. Rh5 {[%clk 0:00:04]}  Rh7 {[%clk 0:00:05]} 48. g4 {[%clk 0:00:05]}  Ng6 {[%clk 0:00:05]} 49. g5 {[%clk 0:00:03]}  Nce5 {[%clk 0:00:05]} 50. Ke1 {[%clk 0:00:03]}  Re7 {[%clk 0:00:05]} 51. Kd1 {[%clk 0:00:02]}  a5 {[%clk 0:00:04]} 52. Rh1 {[%clk 0:00:02]}  a4 {[%clk 0:00:04]} 53. Bh5 {[%clk 0:00:02]}  a3 {[%clk 0:00:04]} 54. Bxg6 {[%clk 0:00:02]}  Nxg6 {[%clk 0:00:04]} 55. Kc2 {[%clk 0:00:03]}  Re5 {[%clk 0:00:04]} 56. Kb3 {[%clk 0:00:03]}  Re3+ {[%clk 0:00:05]} 57. Ka2 {[%clk 0:00:03]}  Kb5 {[%clk 0:00:05]} 58. h7 {[%clk 0:00:04]}  Kb4 {[%clk 0:00:05]} 59. h8=Q {[%clk 0:00:03]}  Nxh8 {[%clk 0:00:05]} 60. Rxh8 {[%clk 0:00:04]}  Re2+ {[%clk 0:00:05]} 61. Ka1 {[%clk 0:00:04]}  Rg2 {[%clk 0:00:04]} 62. Rb8+ {[%clk 0:00:04]}  Kc3 {[%clk 0:00:04]} 63. Rb5 {[%clk 0:00:04]}  Kc4 {[%clk 0:00:04]} 64. Rf5 {[%clk 0:00:03]}  Kb3 {[%clk 0:00:04]} 65. Rf3+ {[%clk 0:00:03]}  Kb4 {[%clk 0:00:04]} 66. Rf4+ {[%clk 0:00:04]}  Kb3 {[%clk 0:00:05]} 67. Rf3+ {[%clk 0:00:04]}  Kb4 {[%clk 0:00:05]} 68. Rf5 {[%clk 0:00:04]}  Kb3 {[%clk 0:00:05]} 69. Rf3+ {[%clk 0:00:05]} 1/2-1/2


[Site "https://www.chess.com"]